[Event "Titled Tuesday Blitz July 26 Early 2022"]
[White "Large, Peter G"]
[Black "Gracia Alvarez, Gerardo Antonio"]
[WhiteFideId "400866"]
[BlackFideId "5109124"]
[WhiteElo "2064"]
[BlackElo "2139"]
[Result "0-1"]
[Round "11"]
[TimeControl "180+1"]
[Date "2022.07.27"]
[WhiteClock "0:00:01"]
[BlackClock "0:00:06"]

1. Nf3 {[%clk 0:03:00]}  g6 {[%clk 0:02:58]} 2. b3 {[%clk 0:02:59]}  Bg7 {[%clk 0:02:58]} 3. d4 {[%clk 0:02:59]}  c5 {[%clk 0:02:57]} 4. Bb2 {[%clk 0:02:58]}  cxd4 {[%clk 0:02:57]} 5. Nxd4 {[%clk 0:02:58]}  Nf6 {[%clk 0:02:56]} 6. e3 {[%clk 0:02:57]}  Qa5+ {[%clk 0:02:49]} 7. Nd2 {[%clk 0:02:56]}  O-O {[%clk 0:02:44]} 8. Be2 {[%clk 0:02:46]}  Ne4 {[%clk 0:02:42]} 9. Bd3 {[%clk 0:01:56]}  Nxd2 {[%clk 0:02:41]} 10. Qxd2 {[%clk 0:01:55]}  Qxd2+ {[%clk 0:02:42]} 11. Kxd2 {[%clk 0:01:56]}  d5 {[%clk 0:02:42]} 12. Rhc1 {[%clk 0:01:16]}  e5 {[%clk 0:02:41]} 13. Nb5 {[%clk 0:01:15]}  Nc6 {[%clk 0:02:41]} 14. Be2 {[%clk 0:01:05]}  Bf5 {[%clk 0:02:32]} 15. c4 {[%clk 0:00:55]}  Rfd8 {[%clk 0:02:25]} 16. cxd5 {[%clk 0:00:51]}  Rxd5+ {[%clk 0:02:25]} 17. Ke1 {[%clk 0:00:51]}  Rd7 {[%clk 0:02:16]} 18. Rd1 {[%clk 0:00:47]}  Rad8 {[%clk 0:02:14]} 19. Rxd7 {[%clk 0:00:45]}  Rxd7 {[%clk 0:02:15]} 20. Rc1 {[%clk 0:00:42]}  Be6 {[%clk 0:01:48]} 21. Bc4 {[%clk 0:00:34]}  Bxc4 {[%clk 0:01:44]} 22. Rxc4 {[%clk 0:00:34]}  f6 {[%clk 0:01:43]} 23. Nc3 {[%clk 0:00:30]}  Kf7 {[%clk 0:01:42]} 24. e4 {[%clk 0:00:30]}  Rd4 {[%clk 0:01:24]} 25. Rxd4 {[%clk 0:00:27]}  exd4 {[%clk 0:01:17]} 26. Nd5 {[%clk 0:00:24]}  Ke6 {[%clk 0:01:10]} 27. f3 {[%clk 0:00:21]}  f5 {[%clk 0:01:09]} 28. Nf4+ {[%clk 0:00:20]}  Kf6 {[%clk 0:01:01]} 29. exf5 {[%clk 0:00:20]}  Kxf5 {[%clk 0:01:01]} 30. Nd3 {[%clk 0:00:20]}  Bh6 {[%clk 0:00:55]} 31. Ke2 {[%clk 0:00:20]}  b6 {[%clk 0:00:54]} 32. g4+ {[%clk 0:00:20]}  Ke6 {[%clk 0:00:53]} 33. b4 {[%clk 0:00:18]}  Kd5 {[%clk 0:00:52]} 34. b5 {[%clk 0:00:15]}  Na5 {[%clk 0:00:52]} 35. f4 {[%clk 0:00:12]}  Nc4 {[%clk 0:00:47]} 36. Bc1 {[%clk 0:00:11]}  Nd6 {[%clk 0:00:44]} 37. a4 {[%clk 0:00:10]}  Bg7 {[%clk 0:00:38]} 38. Nb2 {[%clk 0:00:08]}  Ke4 {[%clk 0:00:38]} 39. Nd3 {[%clk 0:00:07]}  Nb7 {[%clk 0:00:31]} 40. Nf2+ {[%clk 0:00:07]}  Kd5 {[%clk 0:00:31]} 41. Kd3 {[%clk 0:00:07]}  Nc5+ {[%clk 0:00:32]} 42. Kc2 {[%clk 0:00:07]}  Kc4 {[%clk 0:00:31]} 43. f5 {[%clk 0:00:05]}  d3+ {[%clk 0:00:31]} 44. Nxd3 {[%clk 0:00:04]}  Nxd3 {[%clk 0:00:31]} 45. fxg6 {[%clk 0:00:04]}  hxg6 {[%clk 0:00:31]} 46. h4 {[%clk 0:00:05]}  Nc5 {[%clk 0:00:29]} 47. h5 {[%clk 0:00:04]}  gxh5 {[%clk 0:00:30]} 48. gxh5 {[%clk 0:00:04]}  Nxa4 {[%clk 0:00:29]} 49. h6 {[%clk 0:00:05]}  Bh8 {[%clk 0:00:28]} 50. Bg5 {[%clk 0:00:03]}  Kxb5 {[%clk 0:00:24]} 51. Be7 {[%clk 0:00:03]}  Nc5 {[%clk 0:00:07]} 52. Bd6 {[%clk 0:00:01]}  Ne6 {[%clk 0:00:06]} 0-1


[Site "https://www.chess.com"]

[Event "Titled Tuesday Blitz July 26 Early 2022"]
[White "Lianes Garcia, Marcos"]
[Black "Odegov, Artem"]
[WhiteFideId "32060777"]
[BlackFideId "34183644"]
[WhiteElo "2334"]
[BlackElo "2286"]
[Result "1-0"]
[Round "11"]
[TimeControl "180+1"]
[Date "2022.07.26"]
[WhiteClock "0:00:31"]
[BlackClock "0:00:08"]

1. e4 {[%clk 0:03:00]}  e6 {[%clk 0:02:59]} 2. g3 {[%clk 0:03:00]}  d5 {[%clk 0:03:00]} 3. Bg2 {[%clk 0:03:01]}  Nf6 {[%clk 0:02:59]} 4. e5 {[%clk 0:03:01]}  Nfd7 {[%clk 0:02:59]} 5. d4 {[%clk 0:03:02]}  c5 {[%clk 0:02:59]} 6. c3 {[%clk 0:03:03]}  Nc6 {[%clk 0:03:00]} 7. Ne2 {[%clk 0:03:03]}  f6 {[%clk 0:02:57]} 8. Nf4 {[%clk 0:03:00]}  Qe7 {[%clk 0:02:46]} 9. exf6 {[%clk 0:02:56]}  Nxf6 {[%clk 0:02:46]} 10. dxc5 {[%clk 0:02:56]}  Bd7 {[%clk 0:02:44]} 11. O-O {[%clk 0:02:49]}  O-O-O {[%clk 0:02:43]} 12. Re1 {[%clk 0:02:47]}  Qf7 {[%clk 0:02:40]} 13. Nd3 {[%clk 0:02:44]}  g6 {[%clk 0:02:31]} 14. Bf4 {[%clk 0:02:41]}  Bg7 {[%clk 0:02:30]} 15. Nd2 {[%clk 0:02:39]}  Nh5 {[%clk 0:02:24]} 16. Bd6 {[%clk 0:02:34]}  Bf8 {[%clk 0:02:24]} 17. Nf3 {[%clk 0:02:27]}  Bxd6 {[%clk 0:02:14]} 18. cxd6 {[%clk 0:02:27]}  Rde8 {[%clk 0:01:59]} 19. Nde5 {[%clk 0:02:24]}  Qf8 {[%clk 0:01:58]} 20. c4 {[%clk 0:02:14]}  d4 {[%clk 0:01:04]} 21. Nxd7 {[%clk 0:02:00]}  Kxd7 {[%clk 0:01:00]} 22. Nxd4 {[%clk 0:02:00]}  Nxd4 {[%clk 0:00:56]} 23. Qxd4 {[%clk 0:02:01]}  Qxd6 {[%clk 0:00:56]} 24. Qxa7 {[%clk 0:01:59]}  Qc7 {[%clk 0:00:52]} 25. Rad1+ {[%clk 0:01:50]}  Ke7 {[%clk 0:00:52]} 26. Qe3 {[%clk 0:01:46]}  Kf7 {[%clk 0:00:41]} 27. b3 {[%clk 0:01:40]}  Rhf8 {[%clk 0:00:40]} 28. Qf3+ {[%clk 0:01:25]}  Kg8 {[%clk 0:00:40]} 29. Qxb7 {[%clk 0:01:25]}  Qc5 {[%clk 0:00:40]} 30. Rd2 {[%clk 0:01:16]}  Nf6 {[%clk 0:00:39]} 31. Qc6 {[%clk 0:01:09]}  Qa5 {[%clk 0:00:35]} 32. Rde2 {[%clk 0:01:09]}  e5 {[%clk 0:00:27]} 33. h3 {[%clk 0:01:05]}  e4 {[%clk 0:00:14]} 34. Bxe4 {[%clk 0:00:47]}  Rxe4 {[%clk 0:00:02]} 35. Rxe4 {[%clk 0:00:48]}  Nxe4 {[%clk 0:00:02]} 36. Qxe4 {[%clk 0:00:46]}  Qxa2 {[%clk 0:00:03]} 37. Qe3 {[%clk 0:00:41]}  Qb2 {[%clk 0:00:02]} 38. Kg2 {[%clk 0:00:40]}  Qf6 {[%clk 0:00:02]} 39. Re2 {[%clk 0:00:40]}  Qc6+ {[%clk 0:00:02]} 40. Qe4 {[%clk 0:00:40]}  Qc7 {[%clk 0:00:03]} 41. Qd5+ {[%clk 0:00:38]}  Rf7 {[%clk 0:00:03]} 42. c5 {[%clk 0:00:38]}  Qb7 {[%clk 0:00:02]} 43. c6 {[%clk 0:00:33]}  Qc7 {[%clk 0:00:02]} 44. b4 {[%clk 0:00:31]}  Kg7 {[%clk 0:00:02]} 45. b5 {[%clk 0:00:30]}  h5 {[%clk 0:00:03]} 46. Qe5+ {[%clk 0:00:29]}  Qxe5 {[%clk 0:00:03]} 47. Rxe5 {[%clk 0:00:30]}  Rf5 {[%clk 0:00:02]} 48. Rxf5 {[%clk 0:00:30]}  gxf5 {[%clk 0:00:02]} 49. c7 {[%clk 0:00:31]}  f4 {[%clk 0:00:02]} 50. c8=Q {[%clk 0:00:31]}  fxg3 {[%clk 0:00:03]} 51. Qc6 {[%clk 0:00:31]}  h4 {[%clk 0:00:04]} 52. b6 {[%clk 0:00:31]}  Kh7 {[%clk 0:00:05]} 53. b7 {[%clk 0:00:31]}  gxf2 {[%clk 0:00:06]} 54. b8=Q {[%clk 0:00:29]}  f1=Q+ {[%clk 0:00:07]} 55. Kxf1 {[%clk 0:00:29]}  Kg7 {[%clk 0:00:08]} 56. Qbb7+ {[%clk 0:00:30]}  Kf8 {[%clk 0:00:08]} 57. Qcc8# {[%clk 0:00:31]} 1-0


[Site "https://www.chess.com"]

[Event "Titled Tuesday Blitz July 26 Early 2022"]
[White "Molina, Roberto Junio Brito"]
[Black "Kuderinov, Kirill"]
[WhiteFideId "2109450"]
[BlackFideId "13701568"]
[WhiteElo "2432"]
[BlackElo "2465"]
[Result "1/2-1/2"]
[Round "11"]
[TimeControl "180+1"]
[Date "2022.07.26"]
[WhiteClock "0:00:11"]
[BlackClock "0:00:24"]

1. d4 {[%clk 0:03:00]}  Nf6 {[%clk 0:02:59]} 2. e3 {[%clk 0:03:01]}  e6 {[%clk 0:02:57]} 3. Nf3 {[%clk 0:03:02]}  c5 {[%clk 0:02:57]} 4. Bd3 {[%clk 0:03:03]}  Be7 {[%clk 0:02:57]} 5. O-O {[%clk 0:03:03]}  O-O {[%clk 0:02:58]} 6. b3 {[%clk 0:03:04]}  cxd4 {[%clk 0:02:56]} 7. exd4 {[%clk 0:03:04]}  d5 {[%clk 0:02:56]} 8. Bb2 {[%clk 0:03:02]}  b6 {[%clk 0:02:52]} 9. Qe2 {[%clk 0:03:02]}  a5 {[%clk 0:02:45]} 10. Nbd2 {[%clk 0:03:02]}  Ba6 {[%clk 0:02:44]} 11. c4 {[%clk 0:02:57]}  Nbd7 {[%clk 0:02:41]} 12. Rac1 {[%clk 0:02:55]}  Rc8 {[%clk 0:02:40]} 13. Rc2 {[%clk 0:02:55]}  Nh5 {[%clk 0:02:33]} 14. g3 {[%clk 0:02:55]}  dxc4 {[%clk 0:02:31]} 15. bxc4 {[%clk 0:02:55]}  Bb7 {[%clk 0:02:30]} 16. Rfc1 {[%clk 0:02:52]}  Re8 {[%clk 0:02:29]} 17. Ne5 {[%clk 0:02:47]}  Nhf6 {[%clk 0:02:20]} 18. f4 {[%clk 0:02:44]}  Rf8 {[%clk 0:01:57]} 19. Ndf3 {[%clk 0:02:41]}  Nxe5 {[%clk 0:01:56]} 20. fxe5 {[%clk 0:02:36]}  Nd7 {[%clk 0:01:56]} 21. Be4 {[%clk 0:02:33]}  Qc7 {[%clk 0:01:50]} 22. d5 {[%clk 0:02:23]}  Bc5+ {[%clk 0:01:44]} 23. Kg2 {[%clk 0:02:21]}  exd5 {[%clk 0:01:39]} 24. cxd5 {[%clk 0:02:21]}  Rfe8 {[%clk 0:01:30]} 25. Qd3 {[%clk 0:02:06]}  Nf8 {[%clk 0:01:28]} 26. d6 {[%clk 0:02:02]}  Bxe4 {[%clk 0:01:26]} 27. Qxe4 {[%clk 0:02:03]}  Qd7 {[%clk 0:01:25]} 28. Qd5 {[%clk 0:01:54]}  Rcd8 {[%clk 0:01:10]} 29. Bd4 {[%clk 0:01:52]}  Bxd4 {[%clk 0:01:01]} 30. Nxd4 {[%clk 0:01:52]}  Qg4 {[%clk 0:00:58]} 31. Rc7 {[%clk 0:01:47]}  Ne6 {[%clk 0:00:52]} 32. Nxe6 {[%clk 0:01:45]}  Qe2+ {[%clk 0:00:46]} 33. Kh1 {[%clk 0:01:43]}  fxe6 {[%clk 0:00:46]} 34. Qd4 {[%clk 0:01:27]}  Rf8 {[%clk 0:00:45]} 35. Kg1 {[%clk 0:01:21]}  h5 {[%clk 0:00:42]} 36. R7c2 {[%clk 0:01:15]}  Qb5 {[%clk 0:00:36]} 37. Re1 {[%clk 0:01:06]}  Rf5 {[%clk 0:00:32]} 38. a4 {[%clk 0:00:58]}  Qb3 {[%clk 0:00:26]} 39. Qc4 {[%clk 0:00:53]}  Qxc4 {[%clk 0:00:18]} 40. Rxc4 {[%clk 0:00:54]}  Rf3 {[%clk 0:00:16]} 41. Kg2 {[%clk 0:00:50]}  Rb3 {[%clk 0:00:16]} 42. Re2 {[%clk 0:00:48]}  Kh7 {[%clk 0:00:15]} 43. Kh3 {[%clk 0:00:48]}  Kg6 {[%clk 0:00:15]} 44. Rc7 {[%clk 0:00:39]}  h4 {[%clk 0:00:13]} 45. Rf2 {[%clk 0:00:37]}  hxg3 {[%clk 0:00:13]} 46. hxg3 {[%clk 0:00:38]}  Rh8+ {[%clk 0:00:13]} 47. Kg2 {[%clk 0:00:38]}  Re3 {[%clk 0:00:13]} 48. Rff7 {[%clk 0:00:37]}  Rxe5 {[%clk 0:00:13]} 49. Rxg7+ {[%clk 0:00:37]}  Kh6 {[%clk 0:00:14]} 50. Rg4 {[%clk 0:00:34]}  Rd8 {[%clk 0:00:11]} 51. d7 {[%clk 0:00:27]}  Rd5 {[%clk 0:00:11]} 52. Rc6 {[%clk 0:00:28]}  R8xd7 {[%clk 0:00:09]} 53. Rxe6+ {[%clk 0:00:28]}  Kh5 {[%clk 0:00:09]} 54. Rh4+ {[%clk 0:00:25]}  Kg5 {[%clk 0:00:09]} 55. Rxb6 {[%clk 0:00:25]}  Rd2+ {[%clk 0:00:09]} 56. Kh3 {[%clk 0:00:26]}  R2d5 {[%clk 0:00:09]} 57. Rbh6 {[%clk 0:00:24]}  Kf5 {[%clk 0:00:07]} 58. R6h5+ {[%clk 0:00:21]}  Kg6 {[%clk 0:00:07]} 59. Rh6+ {[%clk 0:00:20]}  Kg7 {[%clk 0:00:07]} 60. Rh7+ {[%clk 0:00:19]}  Kg6 {[%clk 0:00:07]} 61. R4h6+ {[%clk 0:00:18]}  Kg5 {[%clk 0:00:08]} 62. Rh5+ {[%clk 0:00:14]}  Kg6 {[%clk 0:00:08]} 63. R7h6+ {[%clk 0:00:06]}  Kg7 {[%clk 0:00:08]} 64. Rxd5 {[%clk 0:00:07]}  Rxd5 {[%clk 0:00:08]} 65. Ra6 {[%clk 0:00:07]}  Kf7 {[%clk 0:00:07]} 66. g4 {[%clk 0:00:08]}  Rc5 {[%clk 0:00:07]} 67. Kh4 {[%clk 0:00:08]}  Kg7 {[%clk 0:00:07]} 68. Ra7+ {[%clk 0:00:08]}  Kg6 {[%clk 0:00:07]} 69. Ra6+ {[%clk 0:00:09]}  Kg7 {[%clk 0:00:08]} 70. Rb6 {[%clk 0:00:09]}  Rc4 {[%clk 0:00:08]} 71. Kg5 {[%clk 0:00:08]}  Rxa4 {[%clk 0:00:08]} 72. Rb7+ {[%clk 0:00:08]}  Kg8 {[%clk 0:00:09]} 73. Kf5 {[%clk 0:00:09]}  Rc4 {[%clk 0:00:09]} 74. Ra7 {[%clk 0:00:09]}  Rc5+ {[%clk 0:00:09]} 75. Kg6 {[%clk 0:00:09]}  Rc6+ {[%clk 0:00:09]} 76. Kh5 {[%clk 0:00:10]}  Rc5+ {[%clk 0:00:10]} 77. g5 {[%clk 0:00:10]}  Rb5 {[%clk 0:00:10]} 78. Kh6 {[%clk 0:00:11]}  Rb6+ {[%clk 0:00:08]} 79. g6 {[%clk 0:00:11]}  Rb8 {[%clk 0:00:09]} 80. Rxa5 {[%clk 0:00:09]}  Re8 {[%clk 0:00:10]} 81. Ra7 {[%clk 0:00:10]}  Rd8 {[%clk 0:00:10]} 82. Ra6 {[%clk 0:00:10]}  Re8 {[%clk 0:00:11]} 83. Kg5 {[%clk 0:00:11]}  Rd8 {[%clk 0:00:11]} 84. Kf5 {[%clk 0:00:11]}  Rf8+ {[%clk 0:00:11]} 85. Ke6 {[%clk 0:00:11]}  Re8+ {[%clk 0:00:12]} 86. Kf6 {[%clk 0:00:12]}  Rf8+ {[%clk 0:00:12]} 87. Kg5 {[%clk 0:00:12]}  Re8 {[%clk 0:00:13]} 88. Rf6 {[%clk 0:00:13]}  Re5+ {[%clk 0:00:13]} 89. Kh6 {[%clk 0:00:13]}  Re8 {[%clk 0:00:14]} 90. Rf7 {[%clk 0:00:13]}  Rd8 {[%clk 0:00:14]} 91. Rg7+ {[%clk 0:00:14]}  Kh8 {[%clk 0:00:14]} 92. Rh7+ {[%clk 0:00:14]}  Kg8 {[%clk 0:00:14]} 93. Rc7 {[%clk 0:00:14]}  Re8 {[%clk 0:00:15]} 94. Rc6 {[%clk 0:00:14]}  Rd8 {[%clk 0:00:15]} 95. Re6 {[%clk 0:00:14]}  Rc8 {[%clk 0:00:15]} 96. Kg5 {[%clk 0:00:14]}  Rd8 {[%clk 0:00:15]} 97. Kf6 {[%clk 0:00:15]}  Rf8+ {[%clk 0:00:16]} 98. Kg5 {[%clk 0:00:15]}  Rd8 {[%clk 0:00:16]} 99. Re5 {[%clk 0:00:16]}  Rc8 {[%clk 0:00:17]} 100. Rf5 {[%clk 0:00:16]}  Rd8 {[%clk 0:00:17]} 101. Kh6 {[%clk 0:00:16]}  Rc8 {[%clk 0:00:17]} 102. Rf4 {[%clk 0:00:16]}  Rd8 {[%clk 0:00:18]} 103. Rf3 {[%clk 0:00:17]}  Rc8 {[%clk 0:00:18]} 104. Rd3 {[%clk 0:00:17]}  Re8 {[%clk 0:00:18]} 105. Rd4 {[%clk 0:00:17]}  Rc8 {[%clk 0:00:19]} 106. Rd7 {[%clk 0:00:17]}  Re8 {[%clk 0:00:19]} 107. Rc7 {[%clk 0:00:18]}  Rd8 {[%clk 0:00:19]} 108. Rg7+ {[%clk 0:00:18]}  Kh8 {[%clk 0:00:19]} 109. Rb7 {[%clk 0:00:19]}  Kg8 {[%clk 0:00:19]} 110. Rb6 {[%clk 0:00:19]}  Re8 {[%clk 0:00:20]} 111. Kg5 {[%clk 0:00:19]}  Re5+ {[%clk 0:00:20]} 112. Kf6 {[%clk 0:00:20]}  Re8 {[%clk 0:00:21]} 113. g7 {[%clk 0:00:20]}  Rd8 {[%clk 0:00:20]} 114. Re6 {[%clk 0:00:17]}  Rb8 {[%clk 0:00:20]} 115. Kg6 {[%clk 0:00:17]}  Ra8 {[%clk 0:00:21]} 116. Kh6 {[%clk 0:00:18]}  Rb8 {[%clk 0:00:21]} 117. Rf6 {[%clk 0:00:18]}  Ra8 {[%clk 0:00:22]} 118. Kg6 {[%clk 0:00:18]}  Rb8 {[%clk 0:00:22]} 119. Re6 {[%clk 0:00:17]}  Ra8 {[%clk 0:00:23]} 120. Rb6 {[%clk 0:00:18]}  Rc8 {[%clk 0:00:23]} 121. Rd6 {[%clk 0:00:17]}  Rb8 {[%clk 0:00:23]} 122. Kf6 {[%clk 0:00:18]}  Ra8 {[%clk 0:00:23]} 123. Rc6 {[%clk 0:00:18]}  Rb8 {[%clk 0:00:24]} 124. Re6 {[%clk 0:00:17]}  Ra8 {[%clk 0:00:24]} 125. Rb6 {[%clk 0:00:17]}  Rc8 {[%clk 0:00:24]} 126. Ra6 {[%clk 0:00:17]}  Rb8 {[%clk 0:00:24]} 127. Re6 {[%clk 0:00:11]}  Rc8 {[%clk 0:00:24]} 128. Re5 {[%clk 0:00:11]}  Rc6+ {[%clk 0:00:24]} 129. Ke7 {[%clk 0:00:11]}  Kxg7 {[%clk 0:00:23]} 130. Rg5+ {[%clk 0:00:12]}  Rg6 {[%clk 0:00:24]} 131. Rxg6+ {[%clk 0:00:11]}  Kxg6 {[%clk 0:00:24]} 1/2-1/2


[Site "https://www.chess.com"]

[Event "Titled Tuesday Blitz July 26 Early 2022"]
[White "Nilsson, Joakim"]
[Black "Mikhailovsky, Vladimir"]
[WhiteFideId "1723383"]
[BlackFideId "34105414"]
[WhiteElo "2214"]
[BlackElo "2303"]
[Result "0-1"]
[Round "11"]
[TimeControl "180+1"]
[Date "2022.07.26"]
[WhiteClock "0:02:16"]
[BlackClock "0:02:26"]

1. h4 {[%clk 0:02:58]}  a5 {[%clk 0:02:57]} 2. d4 {[%clk 0:02:54]}  d5 {[%clk 0:02:56]} 3. c4 {[%clk 0:02:53]}  dxc4 {[%clk 0:02:54]} 4. e3 {[%clk 0:02:52]}  e5 {[%clk 0:02:39]} 5. Bxc4 {[%clk 0:02:49]}  exd4 {[%clk 0:02:40]} 6. exd4 {[%clk 0:02:48]}  Nf6 {[%clk 0:02:39]} 7. Nf3 {[%clk 0:02:48]}  Bd6 {[%clk 0:02:38]} 8. Nc3 {[%clk 0:02:46]}  O-O {[%clk 0:02:38]} 9. O-O {[%clk 0:02:46]}  h6 {[%clk 0:02:37]} 10. Qc2 {[%clk 0:02:42]}  Bg4 {[%clk 0:02:36]} 11. Ne5 {[%clk 0:02:42]}  Nc6 {[%clk 0:02:34]} 12. Nxc6 {[%clk 0:02:40]}  bxc6 {[%clk 0:02:33]} 13. Ne4 {[%clk 0:02:38]}  Nxe4 {[%clk 0:02:31]} 14. Qxe4 {[%clk 0:02:39]}  Qxh4 {[%clk 0:02:32]} 15. g3 {[%clk 0:02:32]}  Qh5 {[%clk 0:02:31]} 16. f3 {[%clk 0:02:28]}  Bxg3 {[%clk 0:02:31]} 17. Qc2 {[%clk 0:02:21]}  Bh3 {[%clk 0:02:27]} 18. Rd1 {[%clk 0:02:16]}  Rae8 {[%clk 0:02:26]} 0-1


[Site "https://www.chess.com"]

[Event "Titled Tuesday Blitz July 26 Early 2022"]
[White "Ohanyan, Emin"]
[Black "Dubov, Daniil"]
[WhiteFideId "13312022"]
[BlackFideId "24126055"]
[WhiteElo "1927"]
[BlackElo "2791"]
[Result "1-0"]
[Round "11"]
[TimeControl "180+1"]
[Date "2022.07.26"]
[WhiteClock "0:00:51"]
[BlackClock "0:01:31"]

1. e4 {[%clk 0:03:00]}  e5 {[%clk 0:02:59]} 2. Nc3 {[%clk 0:03:01]}  Nc6 {[%clk 0:03:00]} 3. Bc4 {[%clk 0:03:01]}  Nf6 {[%clk 0:03:01]} 4. d3 {[%clk 0:03:02]}  Bc5 {[%clk 0:03:01]} 5. f4 {[%clk 0:03:02]}  b5 {[%clk 0:02:50]} 6. Bxb5 {[%clk 0:02:53]}  Nd4 {[%clk 0:02:50]} 7. fxe5 {[%clk 0:02:43]}  O-O {[%clk 0:02:50]} 8. exf6 {[%clk 0:02:21]}  Qxf6 {[%clk 0:02:51]} 9. Nf3 {[%clk 0:02:22]}  c6 {[%clk 0:02:46]} 10. Ba4 {[%clk 0:01:45]}  d5 {[%clk 0:02:45]} 11. Nxd4 {[%clk 0:01:46]}  Bxd4 {[%clk 0:02:41]} 12. Qd2 {[%clk 0:01:11]}  dxe4 {[%clk 0:02:33]} 13. Nxe4 {[%clk 0:01:09]}  Re8 {[%clk 0:02:32]} 14. Rf1 {[%clk 0:01:06]}  Qg6 {[%clk 0:02:22]} 15. Bb3 {[%clk 0:01:03]}  Be6 {[%clk 0:02:07]} 16. Qf4 {[%clk 0:01:02]}  Bxb3 {[%clk 0:01:36]} 17. axb3 {[%clk 0:01:03]}  Re5 {[%clk 0:01:36]} 18. Ra4 {[%clk 0:00:55]}  c5 {[%clk 0:01:34]} 19. Rxd4 {[%clk 0:00:54]}  Rae8 {[%clk 0:01:31]} 20. Qxe5 {[%clk 0:00:51]} 1-0


[Site "https://www.chess.com"]

[Event "Titled Tuesday Blitz July 26 Early 2022"]
[White "Omariev, Maksim"]
[Black "Janaszak, Dawid"]
[WhiteFideId "4193423"]
[BlackFideId "1119206"]
[WhiteElo "2520"]
[BlackElo "2199"]
[Result "0-1"]
[Round "11"]
[TimeControl "180+1"]
[Date "2022.07.26"]
[WhiteClock "0:00:04"]
[BlackClock "0:00:51"]

1. b3 {[%clk 0:03:00]}  c5 {[%clk 0:02:58]} 2. Bb2 {[%clk 0:03:01]}  d6 {[%clk 0:02:58]} 3. h3 {[%clk 0:03:02]}  e5 {[%clk 0:02:58]} 4. g4 {[%clk 0:03:03]}  h5 {[%clk 0:02:56]} 5. gxh5 {[%clk 0:02:58]}  Nc6 {[%clk 0:02:57]} 6. c4 {[%clk 0:02:55]}  Qh4 {[%clk 0:02:56]} 7. Nc3 {[%clk 0:02:50]}  Nf6 {[%clk 0:02:55]} 8. Bg2 {[%clk 0:02:20]}  Bf5 {[%clk 0:02:52]} 9. d3 {[%clk 0:02:11]}  O-O-O {[%clk 0:02:43]} 10. Qd2 {[%clk 0:02:09]}  Qxh5 {[%clk 0:02:35]} 11. O-O-O {[%clk 0:02:04]}  Be7 {[%clk 0:02:35]} 12. Kb1 {[%clk 0:02:03]}  Qg6 {[%clk 0:02:26]} 13. Bxc6 {[%clk 0:01:56]}  bxc6 {[%clk 0:02:26]} 14. Nf3 {[%clk 0:01:57]}  Qh6 {[%clk 0:02:22]} 15. e3 {[%clk 0:01:49]}  Qh5 {[%clk 0:02:20]} 16. Ng1 {[%clk 0:01:37]}  Ne8 {[%clk 0:02:13]} 17. Nge2 {[%clk 0:01:25]}  Bh4 {[%clk 0:02:00]} 18. Ng3 {[%clk 0:01:22]}  Bxg3 {[%clk 0:01:58]} 19. fxg3 {[%clk 0:01:23]}  Bxh3 {[%clk 0:01:58]} 20. Ne4 {[%clk 0:01:13]}  Qg6 {[%clk 0:01:50]} 21. Qa5 {[%clk 0:00:50]}  Nc7 {[%clk 0:01:38]} 22. Qxa7 {[%clk 0:00:43]}  Bf5 {[%clk 0:01:37]} 23. Rxh8 {[%clk 0:00:40]}  Rxh8 {[%clk 0:01:37]} 24. Qb6 {[%clk 0:00:30]}  Bxe4 {[%clk 0:01:36]} 25. dxe4 {[%clk 0:00:31]}  Qxe4+ {[%clk 0:01:35]} 26. Ka1 {[%clk 0:00:32]}  Qf3 {[%clk 0:01:30]} 27. Rc1 {[%clk 0:00:22]}  Rh2 {[%clk 0:01:30]} 28. a4 {[%clk 0:00:19]}  Qg2 {[%clk 0:01:29]} 29. Rb1 {[%clk 0:00:20]}  Kd7 {[%clk 0:01:25]} 30. a5 {[%clk 0:00:20]}  Qc2 {[%clk 0:01:23]} 31. Ka2 {[%clk 0:00:17]}  Rh8 {[%clk 0:01:20]} 32. a6 {[%clk 0:00:14]}  Qd2 {[%clk 0:01:16]} 33. a7 {[%clk 0:00:12]}  Qb4 {[%clk 0:01:15]} 34. Qxb4 {[%clk 0:00:02]}  cxb4 {[%clk 0:01:16]} 35. Ra1 {[%clk 0:00:03]}  Kc8 {[%clk 0:01:17]} 36. Kb1 {[%clk 0:00:02]}  Rh1+ {[%clk 0:01:15]} 37. Bc1 {[%clk 0:00:02]}  Kb7 {[%clk 0:01:14]} 38. Ra2 {[%clk 0:00:02]}  Rg1 {[%clk 0:01:08]} 39. Kc2 {[%clk 0:00:02]}  Rxg3 {[%clk 0:01:05]} 40. Bd2 {[%clk 0:00:03]}  f5 {[%clk 0:01:03]} 41. Bxb4 {[%clk 0:00:02]}  Rg2+ {[%clk 0:01:01]} 42. Bd2 {[%clk 0:00:03]}  f4 {[%clk 0:01:01]} 43. exf4 {[%clk 0:00:03]}  exf4 {[%clk 0:01:02]} 44. Kd3 {[%clk 0:00:04]}  f3 {[%clk 0:01:03]} 45. Ra1 {[%clk 0:00:05]}  g5 {[%clk 0:01:01]} 46. Be3 {[%clk 0:00:04]}  g4 {[%clk 0:01:00]} 47. Rh1 {[%clk 0:00:04]}  c5 {[%clk 0:00:59]} 48. Ke4 {[%clk 0:00:04]}  Kxa7 {[%clk 0:00:58]} 49. b4 {[%clk 0:00:05]}  Na6 {[%clk 0:00:54]} 50. b5 {[%clk 0:00:05]}  Nb4 {[%clk 0:00:53]} 51. Rh7+ {[%clk 0:00:05]}  Kb8 {[%clk 0:00:51]} 52. Rh6 {[%clk 0:00:04]}  Re2 {[%clk 0:00:51]} 53. Rxd6 {[%clk 0:00:03]}  f2 {[%clk 0:00:51]} 54. Rf6 {[%clk 0:00:04]}  g3 {[%clk 0:00:52]} 55. Kf3 {[%clk 0:00:04]}  f1=Q+ {[%clk 0:00:51]} 56. Kxg3 {[%clk 0:00:04]}  Qxf6 {[%clk 0:00:52]} 57. Bf4+ {[%clk 0:00:04]}  Kb7 {[%clk 0:00:51]} 0-1


[Site "https://www.chess.com"]